fUSD/lending_fUSD_20250405
["ID","MTS","AMOUNT","RATE_DAILY","PERIOD"]
[357186074,1743871866511,-750.61,0.00032328,2]
[357186075,1743871866521,-540.58,0.00032328,2]
[357186076,1743871866531,-500.0,0.00032328,2]
[357186077,1743871866541,-494.11574764,0.00032328,2]
[357186078,1743871866550,-500.0,0.00032328,2]
[357186079,1743871866561,-1037.47,0.00032328,2]
[357186080,1743871866570,-500.0,0.00032328,2]
[357186081,1743871866580,-500.0,0.00032328,2]
[357186082,1743871866590,-151.0,0.00032328,7]
[357186083,1743871866599,-500.0,0.00032328,2]
[357186084,1743871866609,-501.49,0.00032328,2]
[357186085,1743871866619,-500.0,0.00032328,2]
[357186086,1743871866628,-500.0,0.00032328,2]
[357186087,1743871866638,-165.93975288,0.00032328,2]
[357186088,1743871866647,-673.21,0.00032328,2]
[357186089,1743871866657,-500.0,0.00032328,2]
[357186090,1743871866666,-500.0,0.00032328,2]
[357186091,1743871866676,-500.0,0.00032328,2]
[357186092,1743871866685,-151.0,0.00032328,7]
[357186093,1743871866695,-845.57,0.00032328,2]
[357186094,1743871866704,-543.39,0.00032328,2]
[357186095,1743871866714,-500.0,0.00032328,2]
[357186096,1743871866724,-2562.27,0.00032328,2]
[357186097,1743871866734,-500.0,0.00032328,2]
[357186098,1743871866743,-151.0,0.00032328,7]
[357186099,1743871866753,-695.81,0.00032328,2]
[357186100,1743871866763,-292.943899,0.00032328,7]
[357186101,1743871866772,-214.76092981,0.00032328,2]
[357186102,1743871866782,-757.7,0.00032328,2]
[357186103,1743871866792,-500.0,0.00032328,2]
[357186104,1743871866801,-500.0,0.00032328,2]
[357186105,1743871866810,-515.79,0.00032328,2]
[357186106,1743871866820,-871.31,0.00032328,2]
[357186107,1743871866830,-500.0,0.00032328,2]
[357186108,1743871866839,-939.25,0.00032328,2]
[357186109,1743871866848,-151.0,0.00032328,7]
[357186110,1743871866858,-561.92903984,0.00032328,2]
[357186111,1743871866867,-500.0,0.00032328,2]
[357186112,1743871866876,-500.0,0.00032328,2]
[357186113,1743871866886,-629.48,0.00032328,2]
[357186114,1743871866895,-783.62,0.00032328,2]
[357186115,1743871866904,-500.0,0.00032328,2]
[357186116,1743871866913,-561.1,0.00032328,2]
[357186117,1743871866922,-382.555943,0.00032328,7]
[357186118,1743871866931,-673.31,0.00032328,2]
[357186119,1743871866941,-382.555943,0.00032328,7]
[357186120,1743871866950,-1406.55,0.00032328,2]
[357186121,1743871866960,-500.0,0.00032328,2]
[357186122,1743871866969,-17329.31,0.00032328,2]
[357186123,1743871866978,-510.25,0.00032328,2]
[357186124,1743871866987,-1195.62,0.00032328,2]
[357186125,1743871866997,-1437.78,0.00032328,2]
[357186126,1743871867007,-500.0,0.00032328,2]
[357186127,1743871867016,-600.12,0.00032328,2]
[357186128,1743871867025,-718.29,0.00032328,2]
[357186129,1743871867034,-645.64,0.00032328,2]
[357186130,1743871867044,-971.91,0.00032328,2]
[357186131,1743871867053,-500.0,0.00032328,2]
[357186132,1743871867062,-548.92584002,0.00032328,2]
[357186133,1743871867072,-754.3,0.00032328,2]
[357186134,1743871867082,-1006.43,0.00032328,2]
[357186135,1743871867091,-151.0,0.00032328,7]
[357186136,1743871867100,-602.67,0.00032328,2]
[357186137,1743871867109,-822.78,0.00032328,2]
[357186138,1743871867119,-8628.17,0.00032328,2]
[357186139,1743871867128,-11180.84,0.00032328,2]
[357186140,1743871867137,-500.0,0.00032328,2]
[357186141,1743871867148,-640.66,0.00032328,2]
[357186142,1743871867158,-487.51364946,0.00032328,2]
[357186143,1743871867168,-5048.56,0.00032328,2]
[357186144,1743871867179,-511.23,0.00032328,2]
[357186145,1743871867188,-617.12,0.00032328,2]
[357186146,1743871867197,-929.13,0.00032328,2]
[357186147,1743871867207,-151.0,0.00032328,7]
[357186148,1743871867217,-500.0,0.00032328,2]
[357186149,1743871867228,-151.0,0.00032328,7]
[357186150,1743871867238,-2394.43,0.00032328,2]
[357186151,1743871867248,-500.0,0.00032328,2]
[357186152,1743871867257,-500.0,0.00032328,2]
[357186153,1743871867266,-500.0,0.00032328,2]
[357186154,1743871867276,-20826.04,0.00032328,2]
[357186155,1743871867285,-1582.99,0.00032328,2]
[357186156,1743871867295,-500.0,0.00032328,2]
[357186157,1743871867308,-187.073608,0.00032328,7]
[357186158,1743871867318,-187.073608,0.00032328,7]
[357186159,1743871867327,-502.42741838,0.00032358,5]
[357186160,1743871867337,-170.27322482,0.00032433,4]
[357186161,1743871867346,-501.86842791,0.00032435,5]
[357186162,1743871867356,-500.0,0.00032435,5]
[357186163,1743871867366,-502.65726369,0.00032435,5]
[357186164,1743871867376,-500.0,0.00032435,5]
[357186165,1743871867385,-500.0,0.00032435,5]
[357186166,1743871867395,-502.3331237,0.00032547,5]
[357186167,1743871867405,-500.0,0.00032547,5]
[357186168,1743871867415,-209.37645547,0.00032547,5]
[357186169,1743871867424,-500.0,0.00032547,5]
[357186170,1743871867434,-6857.23,0.0003258,2]
[357186171,1743871867444,-151.0,0.000326,7]
[357186172,1743871867452,-1088.49,0.000326,2]
[357186173,1743871867462,-151.0,0.000326,7]
[357186174,1743871867471,-151.0,0.000326,7]
[357186175,1743871867482,-151.0,0.000326,7]
[357186176,1743871867492,-2904.460534,0.000326,7]
[357186177,1743871867502,-2904.460534,0.000326,7]
[357186178,1743871867511,-151.0,0.000326,7]
[357186179,1743871867521,-151.0,0.000326,7]
[357186180,1743871867531,-500.0,0.00032601,2]
[357186181,1743871867540,-500.0,0.00032601,2]
[357186182,1743871867549,-1054.39,0.00032602,2]
[357186183,1743871867558,-500.0,0.00032602,2]
[357186184,1743871867567,-500.0,0.00032602,2]
[357186185,1743871867576,-815.78,0.00032602,2]
[357186186,1743871867586,-546.4,0.00032602,2]
[357186187,1743871867595,-1733.42,0.00032602,2]
[357186188,1743871867604,-500.0,0.00032602,2]
[357186189,1743871867613,-500.0,0.00032602,2]
[357186190,1743871867622,-2000.0,0.00032602,2]
[357186191,1743871867631,-500.0,0.00032602,2]
[357186192,1743871867641,-540.73,0.00032602,2]
[357186193,1743871867650,-151.0,0.00032602,7]
[357186194,1743871867660,-500.0,0.00032602,2]
[357186195,1743871867669,-1151.97,0.00032602,2]
[357186196,1743871867679,-781.09,0.00032602,2]
[357186197,1743871867688,-619.11,0.00032602,2]
[357186198,1743871867697,-1004.02,0.00032602,2]
[357186199,1743871867707,-645.38,0.00032602,2]
[357186200,1743871867717,-507.27122257,0.00032602,2]
[357186201,1743871867726,-519.04,0.00032602,2]
[357186202,1743871867735,-500.0,0.00032602,2]
[357186203,1743871867744,-500.0,0.00032602,2]
[357186204,1743871867753,-500.0,0.00032602,2]
[357186205,1743871867762,-500.0,0.00032602,2]
[357186206,1743871867771,-500.0,0.00032602,2]
[357186207,1743871867780,-891.95,0.00032602,2]
[357186208,1743871867789,-500.0,0.00032602,2]
[357186209,1743871867799,-2752.19,0.00032602,2]
[357186210,1743871867808,-1592.16,0.00032602,2]
[357186211,1743871867817,-857.66,0.00032602,2]
[357186212,1743871867826,-151.0,0.00032602,7]
[357186213,1743871867835,-809.97,0.00032602,2]
[357186214,1743871867952,-601.58,0.00032602,2]
[357186215,1743871867961,-2922.39,0.00032602,2]
[357186216,1743871867971,-1083.85,0.00032602,2]
[357186217,1743871867981,-500.0,0.00032602,2]
[357186218,1743871867990,-500.0,0.00032602,2]
[357186219,1743871867999,-500.0,0.00032602,2]
[357186220,1743871868008,-500.0,0.00032602,2]
[357186221,1743871868017,-1033.3,0.00032602,2]
[357186222,1743871868026,-500.0,0.00032602,2]
[357186223,1743871868035,-219.515354,0.00032602,7]
[357186224,1743871868044,-543.71,0.00032602,2]
[357186225,1743871868054,-500.0,0.00032602,2]
[357186226,1743871868063,-151.0,0.00032602,7]
[357186227,1743871868072,-1172.11,0.00032602,2]
[357186228,1743871868082,-500.0,0.00032602,2]
[357186229,1743871868091,-750.61,0.00032602,2]
[357186230,1743871868100,-151.0,0.00032602,7]
[357186231,1743871868109,-151.0,0.00032602,7]
[357186232,1743871868118,-540.58,0.00032602,2]
[357186233,1743871868127,-161.29373706,0.00032602,2]
[357186234,1743871868137,-500.0,0.00032602,2]
[357186235,1743871868146,-1037.47,0.00032602,2]
[357186236,1743871868155,-500.0,0.00032602,2]
[357186237,1743871868165,-500.0,0.00032602,2]
[357186238,1743871868174,-500.0,0.00032602,2]
[357186239,1743871868183,-501.49,0.00032602,2]
[357186240,1743871868192,-500.0,0.00032602,2]
[357186241,1743871868201,-500.0,0.00032602,2]
[357186242,1743871868210,-673.21,0.00032602,2]
[357186243,1743871868219,-518.96247033,0.00032602,2]
[357186244,1743871868229,-500.0,0.00032602,2]
[357186245,1743871868238,-500.0,0.00032602,2]
[357186246,1743871868248,-845.57,0.00032602,2]
[357186247,1743871868257,-543.39,0.00032602,2]
[357186248,1743871868267,-500.0,0.00032602,2]
[357186249,1743871868276,-2562.27,0.00032602,2]
[357186250,1743871868285,-500.0,0.00032602,2]
[357186251,1743871868295,-695.81,0.00032602,2]
[357186252,1743871868309,-757.7,0.00032602,2]
[357186253,1743871868318,-500.0,0.00032602,2]
[357186254,1743871868327,-500.0,0.00032602,2]
[357186255,1743871868336,-515.79,0.00032602,2]
[357186256,1743871868346,-871.31,0.00032602,2]
[357186257,1743871868355,-602.03064653,0.00032602,2]
[357186258,1743871868364,-939.25,0.00032602,2]
[357186259,1743871868374,-539.02201496,0.00032602,2]
[357186260,1743871868383,-500.0,0.00032602,2]
[357186261,1743871868393,-629.48,0.00032602,2]
[357186262,1743871868402,-783.62,0.00032602,2]
[357186263,1743871868412,-500.0,0.00032602,2]
[357186264,1743871868421,-561.1,0.00032602,2]
[357186265,1743871868431,-673.31,0.00032602,2]
[357186266,1743871868441,-1406.55,0.00032602,2]
[357186267,1743871868450,-500.0,0.00032602,2]
[357186268,1743871868460,-17329.31,0.00032602,2]
[357186269,1743871868470,-510.25,0.00032602,2]
[357186270,1743871868480,-1195.62,0.00032602,2]
[357186271,1743871868490,-1437.78,0.00032602,2]
[357186272,1743871868500,-500.0,0.00032602,2]
[357186273,1743871868510,-600.12,0.00032602,2]
[357186274,1743871868519,-718.29,0.00032602,2]
[357186275,1743871868529,-645.64,0.00032602,2]
[357186276,1743871868539,-971.91,0.00032602,2]
[357186277,1743871868549,-500.0,0.00032602,2]
[357186278,1743871868560,-754.3,0.00032602,2]
[357186279,1743871868570,-1006.43,0.00032602,2]
[357186280,1743871868580,-602.67,0.00032602,2]
[357186281,1743871868590,-822.78,0.00032602,2]
[357186282,1743871868599,-8628.17,0.00032602,2]
[357186283,1743871868609,-11180.84,0.00032602,2]
[357186284,1743871868618,-500.0,0.00032602,2]
[357186285,1743871868628,-640.66,0.00032602,2]
[357186286,1743871868638,-5048.56,0.00032602,2]
[357186287,1743871868648,-511.23,0.00032602,2]
[357186288,1743871868658,-617.12,0.00032602,2]
[357186289,1743871868668,-929.13,0.00032602,2]
[357186290,1743871868678,-500.0,0.00032602,2]
[357186291,1743871868688,-2394.43,0.00032602,2]
[357186292,1743871868697,-500.0,0.00032602,2]
[357186293,1743871868707,-500.0,0.00032602,2]
[357186294,1743871868717,-500.0,0.00032602,2]
[357186295,1743871868726,-20826.04,0.00032602,2]
[357186296,1743871868736,-1582.99,0.00032602,2]
[357186297,1743871868746,-500.0,0.00032602,2]
[357186298,1743871868756,-5706.68191713,0.00032627,2]
[357186299,1743871868765,-401.02,0.00032646,2]
[357186300,1743871868774,-2217.60395128,0.00032734,2]
[357186301,1743871868784,-161.19740072,0.0003279,2]
[357186302,1743871868793,-193.65286696,0.000328,6]
[357186303,1743871868802,-288.4316994,0.000328,2]
[357186304,1743871868812,-23797.45162376,0.000328,2]
[357186305,1743871868822,-1930.16929153,0.000328,2]
[357186306,1743871868831,-217.1069972,0.000328,2]
[357186307,1743871868841,-358.92584725,0.000328,2]
[357186308,1743871868850,-6857.23,0.0003285,2]
[357186309,1743871868860,-485.25945512,0.00032873,5]
[357186310,1743871868869,-525.09335519,0.00032875,2]
[357186311,1743871868879,-170.98285409,0.00032875,2]
[357186312,1743871868888,-1054.39,0.00032876,2]
[357186313,1743871868897,-547.75193021,0.00032876,2]
[357186314,1743871868906,-500.0,0.00032876,2]
[357186315,1743871868916,-815.78,0.00032876,2]
[357186316,1743871868924,-546.4,0.00032876,2]
[357186317,1743871868934,-154.867652,0.00032876,7]
[357186318,1743871868944,-1733.42,0.00032876,2]
[357186319,1743871868954,-448.30745274,0.00032876,2]
[357186320,1743871868963,-500.95126135,0.00032876,2]
[357186321,1743871868974,-611.13,0.00032876,2]
[357186322,1743871868983,-611.13,0.00032876,2]
[357186323,1743871868993,-611.13,0.00032876,2]
[357186324,1743871869002,-611.13,0.00032876,2]
[357186325,1743871869012,-611.13,0.00032876,2]
[357186326,1743871869021,-611.13,0.00032876,2]
[357186327,1743871869031,-611.13,0.00032876,2]
[357186328,1743871869040,-611.13,0.00032876,2]
[357186329,1743871869052,-611.13,0.00032876,2]
[357186330,1743871869061,-611.13,0.00032876,2]
[357186331,1743871869071,-611.13,0.00032876,2]
[357186332,1743871869080,-2000.0,0.00032876,2]
[357186333,1743871869090,-500.0,0.00032876,2]
[357186334,1743871869099,-540.73,0.00032876,2]
[357186335,1743871869109,-500.0,0.00032876,2]
[357186336,1743871869118,-1151.97,0.00032876,2]
[357186337,1743871869128,-781.09,0.00032876,2]
[357186338,1743871869136,-619.11,0.00032876,2]
[357186339,1743871869146,-1004.02,0.00032876,2]
[357186340,1743871869157,-645.38,0.00032876,2]
[357186341,1743871869167,-519.04,0.00032876,2]
[357186342,1743871869176,-500.0,0.00032876,2]
[357186343,1743871869185,-500.0,0.00032876,2]
[357186344,1743871869194,-500.0,0.00032876,2]
[357186345,1743871869204,-500.0,0.00032876,2]
[357186346,1743871869213,-500.0,0.00032876,2]
[357186347,1743871869222,-891.95,0.00032876,2]
[357186348,1743871869232,-500.0,0.00032876,2]
[357186349,1743871869241,-2752.19,0.00032876,2]
[357186350,1743871869251,-1592.16,0.00032876,2]
[357186351,1743871869260,-857.66,0.00032876,2]
[357186352,1743871869270,-809.97,0.00032876,2]
[357186353,1743871869280,-601.58,0.00032876,2]
[357186354,1743871869289,-2922.39,0.00032876,2]
[357186355,1743871869301,-1083.85,0.00032876,2]
[357186356,1743871869311,-500.0,0.00032876,2]
[357186357,1743871869321,-500.0,0.00032876,2]
[357186358,1743871869330,-278.09994079,0.00032876,2]
[357186359,1743871869341,-500.0,0.00032876,2]
[357186360,1743871869351,-309.3467212,0.00032876,30]
[357186361,1743871869361,-1033.3,0.00032876,2]
[357186362,1743871869370,-500.0,0.00032876,2]
[357186363,1743871869380,-543.71,0.00032876,2]
[357186364,1743871869390,-500.0,0.00032876,2]
[357186365,1743871869400,-1172.11,0.00032876,2]
[357186366,1743871869411,-500.0,0.00032876,2]
[357186367,1743871869420,-750.61,0.00032876,2]
[357186368,1743871869429,-540.58,0.00032876,2]
[357186369,1743871869440,-500.0,0.00032876,2]
[357186370,1743871869449,-1037.47,0.00032876,2]
[357186371,1743871869459,-500.0,0.00032876,2]
[357186372,1743871869472,-500.0,0.00032876,2]
[357186373,1743871869482,-500.0,0.00032876,2]
[357186374,1743871869492,-501.49,0.00032876,2]
[357186375,1743871869502,-500.0,0.00032876,2]
[357186376,1743871869512,-500.0,0.00032876,2]
[357186377,1743871869521,-673.21,0.00032876,2]
[357186378,1743871869531,-500.0,0.00032876,2]
[357186379,1743871869544,-500.0,0.00032876,2]
[357186380,1743871869554,-845.57,0.00032876,2]
[357186381,1743871869565,-543.39,0.00032876,2]
[357186382,1743871869576,-500.0,0.00032876,2]
[357186383,1743871869588,-2562.27,0.00032876,2]
[357186384,1743871869597,-500.0,0.00032876,2]
[357186385,1743871869607,-695.81,0.00032876,2]
[357186386,1743871869617,-757.7,0.00032876,2]
[357186387,1743871869627,-500.0,0.00032876,2]
[357186388,1743871869636,-500.0,0.00032876,2]
[357186389,1743871869645,-515.79,0.00032876,2]
[357186390,1743871869656,-871.31,0.00032876,2]
[357186391,1743871869665,-939.25,0.00032876,2]
[357186392,1743871869675,-500.0,0.00032876,2]
[357186393,1743871869685,-629.48,0.00032876,2]
[357186394,1743871869694,-783.62,0.00032876,2]
[357186395,1743871869703,-500.0,0.00032876,2]
[357186396,1743871869712,-561.1,0.00032876,2]
[357186397,1743871869721,-382.555943,0.00032876,7]
[357186398,1743871869733,-673.31,0.00032876,2]
[357186399,1743871869743,-382.555943,0.00032876,7]
[357186400,1743871869755,-1406.55,0.00032876,2]
[357186401,1743871869766,-500.0,0.00032876,2]
[357186402,1743871869775,-17329.31,0.00032876,2]
[357186403,1743871869785,-510.25,0.00032876,2]
[357186404,1743871869795,-1195.62,0.00032876,2]
[357186405,1743871869806,-1437.78,0.00032876,2]
[357186406,1743871869818,-500.0,0.00032876,2]
[357186407,1743871869828,-600.12,0.00032876,2]
[357186408,1743871869838,-718.29,0.00032876,2]
[357186409,1743871869848,-645.64,0.00032876,2]
[357186410,1743871869858,-971.91,0.00032876,2]
[357186411,1743871869869,-500.0,0.00032876,2]
[357186412,1743871869878,-754.3,0.00032876,2]
[357186413,1743871869890,-1006.43,0.00032876,2]
[357186414,1743871869901,-153.352123,0.00032876,7]
[357186415,1743871869911,-822.78,0.00032876,2]
[357186416,1743871869921,-602.67,0.00032876,2]
[357186417,1743871869932,-8628.17,0.00032876,2]
[357186418,1743871869943,-11180.84,0.00032876,2]
[357186419,1743871869954,-500.0,0.00032876,2]
[357186420,1743871869965,-640.66,0.00032876,2]
[357186421,1743871869975,-5048.56,0.00032876,2]
[357186422,1743871869985,-511.23,0.00032876,2]
[357186423,1743871869994,-617.12,0.00032876,2]
[357186424,1743871870005,-929.13,0.00032876,2]
[357186425,1743871870015,-209.269126,0.00032876,7]
[357186426,1743871870025,-500.0,0.00032876,2]
[357186427,1743871870034,-151.0,0.00032876,7]
[357186428,1743871870146,-2394.43,0.00032876,2]
[357186429,1743871870157,-500.0,0.00032876,2]
[357186430,1743871870167,-500.0,0.00032876,2]
[357186431,1743871870177,-500.0,0.00032876,2]
[357186432,1743871870187,-20826.04,0.00032876,2]
[357186433,1743871870196,-500.0,0.00032876,2]
[357186434,1743871870206,-1582.99,0.00032876,2]
[357186435,1743871870216,-187.073608,0.00032876,7]
[357186436,1743871870226,-187.073608,0.00032876,7]
[357186437,1743871870236,-2000.0,0.00032877,2]
[357186438,1743871870245,-863.44411903,0.00032877,7]
[357186439,1743871870255,-863.44411903,0.00032877,7]
[357186440,1743871870264,-863.44411903,0.00032877,7]
[357186441,1743871870273,-863.44411903,0.00032877,7]
[357186442,1743871870283,-863.44411903,0.00032877,7]
[357186443,1743871870292,-863.44411903,0.00032877,7]
[357186444,1743871870304,-863.44411903,0.00032877,7]
[357186445,1743871870314,-863.44411903,0.00032877,7]
[357186446,1743871870324,-863.44411903,0.00032877,7]
[357186447,1743871870334,-863.44411903,0.00032877,7]
[357186448,1743871870345,-863.44411903,0.00032877,7]
[357186449,1743871870355,-863.44411903,0.00032877,7]
[357186450,1743871870364,-863.44411903,0.00032877,7]
[357186451,1743871870374,-863.44411903,0.00032877,7]
[357186452,1743871870383,-863.44411903,0.00032877,7]
[357186453,1743871870393,-863.44411903,0.00032877,7]
[357186454,1743871870402,-863.44411903,0.00032877,7]
[357186455,1743871870411,-880.71300142,0.00032877,7]
[357186456,1743871870421,-880.71300142,0.00032877,7]
[357186457,1743871870430,-880.71300142,0.00032877,7]
[357186458,1743871870440,-880.71300142,0.00032877,7]
[357186459,1743871870449,-880.71300142,0.00032877,7]
[357186460,1743871870459,-880.71300142,0.00032877,7]
[357186461,1743871870468,-880.71300142,0.00032877,7]
[357186462,1743871870478,-92.31276388,0.00032877,7]
[357186463,1743871870981,-500.0,0.00030673,2]
[357186464,1743871870991,-500.0,0.00030947,2]
[357186465,1743871871001,-500.0,0.00031231,2]
[357186466,1743871871011,-487.22037107,0.00031769,2]
[357186467,1743871871020,-788.40023754,0.00032877,7]
[357186468,1743871871029,-880.71300142,0.00032877,7]
[357186469,1743871871038,-880.71300142,0.00032877,7]
[357186470,1743871871048,-151.0,0.00032877,7]
[357186471,1743871871058,-151.0,0.0003289,7]
[357186472,1743871871068,-151.0,0.0003289,7]
[357186473,1743871871078,-260.161927,0.0003289,7]
[357186474,1743871871087,-151.0,0.0003289,7]
[357186475,1743871871096,-151.0,0.0003289,7]
[357186476,1743871871105,-151.0,0.0003289,7]
[357186477,1743871871115,-151.0,0.0003289,7]
[357186478,1743871871124,-467.61085737,0.00032899,2]
[357186479,1743871871133,-1088.49,0.00032899,2]
[357186480,1743871871143,-1088.49,0.00032899,2]
[357186481,1743871871152,-3311.97,0.000329,14]
[357186482,1743871871161,-198517.56847505,0.000329,14]
[357186483,1743871871208,-3311.84,0.000329,14]
[357186484,1743871871219,-4039.86910832,0.000329,14]
[357186485,1743871872283,-8758.6013179,0.000329,14]
[357186486,1743871872296,-296.71638864,0.000329,14]
[357186487,1743871872317,-20008.51111907,0.000329,14]
[357186488,1743871872331,-11289.66740446,0.000329,14]
[357186489,1743871872348,-1061.46786478,0.000329,14]
[357186507,1743873031696,-439.29,0.00026849,2]
[357186508,1743873031706,-370.41698088,0.00028063,2]
[357186509,1743873031715,-549.38649606,0.00028163,2]
[357186604,1743873037489,-334.70350394,0.00028163,2]
[357186605,1743873037500,-103.41611264,0.00029919,24]
[357186606,1743873037542,-100.52688736,0.00029919,24]
[357186607,1743873037551,-505.44776223,0.00030136,2]
[357186608,1743873037561,-500.0,0.00030136,2]
[357186609,1743873037570,-178.34343793,0.00030136,2]
[357186610,1743873037580,-500.0,0.00030136,2]
[357186611,1743873037589,-305.73451383,0.00030136,2]
[357186612,1743873037600,-503.85902976,0.00030136,2]
[357186613,1743873037610,-580.34665151,0.00030136,2]
[357186614,1743873037620,-507.60034743,0.00030136,2]
[357186615,1743873037630,-513.25225403,0.00030136,2]
[357186616,1743873037639,-506.9261356,0.00030136,2]
[357186617,1743873037649,-507.70817204,0.00030136,2]
[357186618,1743873037663,-500.0,0.00030136,2]
[357186619,1743873037672,-500.0,0.00030136,2]
[357186620,1743873037682,-500.0,0.00030136,2]
[357186621,1743873037691,-500.0,0.00030136,2]
[357186622,1743873037701,-590.2043684,0.00030136,2]
[357186623,1743873037711,-502.05865977,0.00030136,2]
[357186624,1743873037721,-500.0,0.00030136,2]
[357186625,1743873037731,-298.3724225,0.00030136,2]
[357186626,1743873037741,-504.15614968,0.00030136,2]
[357186627,1743873037750,-500.0,0.00030136,2]
[357186628,1743873037760,-500.0,0.00030136,2]
[357186629,1743873037769,-274.51952349,0.00030136,2]
[357186630,1743873037778,-500.0,0.00030136,2]
[357186631,1743873037788,-500.0,0.00030136,2]
[357186632,1743873037797,-500.0,0.00030136,2]
[357186633,1743873037807,-500.0,0.00030136,2]
[357186634,1743873037816,-500.0,0.00030136,2]
[357186635,1743873037828,-501.23573752,0.00030136,2]
[357186636,1743873037838,-502.1845104,0.00030136,2]
[357186637,1743873037849,-500.0,0.00030136,2]
[357186638,1743873037858,-500.0,0.00030136,2]
[357186639,1743873037870,-510.24306216,0.00030136,2]
[357186640,1743873037879,-500.0,0.00030136,2]
[357186641,1743873037888,-500.0,0.00030136,2]
[357186642,1743873037897,-500.0,0.00030136,2]
[357186643,1743873037907,-500.0,0.00030136,2]
[357186644,1743873037917,-265.51654825,0.00030136,2]
[357186645,1743873037926,-500.0,0.00030136,2]
[357186646,1743873037935,-500.0,0.00030136,2]
[357186647,1743873037944,-500.51914507,0.00030136,2]
[357186648,1743873037953,-501.02262948,0.00030136,2]
[357186649,1743873037963,-500.0,0.00030136,2]
[357186650,1743873037972,-500.3854986,0.00030136,2]
[357186651,1743873037983,-537.90731929,0.00030136,2]
[357186652,1743873037991,-455.2137787,0.00030136,2]
[357186653,1743873038002,-500.0,0.00030136,2]
[357186654,1743873038012,-500.0,0.00030136,2]
[357186655,1743873038022,-1582.96,0.00030136,2]
[357186656,1743873038031,-500.0,0.00030136,2]
[357186657,1743873038040,-510.55572545,0.00030136,2]
[357186658,1743873038049,-500.0,0.00030136,2]
[357186659,1743873038059,-500.0,0.00030136,2]
[357186660,1743873038068,-487.00007391,0.00030136,2]
[357186661,1743873038077,-569.45218777,0.00030136,2]
[357186662,1743873038086,-500.0,0.00030136,2]
[357186663,1743873038096,-587.09,0.00030136,2]
[357186664,1743873038105,-500.0,0.00030136,2]
[357186665,1743873038115,-500.0,0.00030136,2]
[357186666,1743873038125,-500.0,0.00030136,2]
[357186667,1743873038136,-500.0,0.00030136,2]
[357186668,1743873038145,-500.0,0.00030136,2]
[357186669,1743873038155,-549.55186746,0.00030136,2]
[357186670,1743873038164,-255.95,0.00030232,2]
[357186671,1743873038174,-373.62,0.00030282,2]
[357186672,1743873038183,-520.28943972,0.0003041,2]
[357186673,1743873038193,-500.0,0.0003041,2]
[357186674,1743873038203,-500.0,0.0003041,2]
[357186675,1743873038212,-404.66594436,0.0003041,2]
[357186676,1743873038222,-536.25470133,0.0003041,2]
[357186677,1743873038232,-510.16357158,0.0003041,2]
[357186678,1743873038242,-524.70016542,0.0003041,2]
[357186679,1743873038251,-500.0,0.0003041,2]
[357186680,1743873038261,-520.7514897,0.0003041,2]
[357186681,1743873038270,-500.0,0.0003041,2]
[357186682,1743873038282,-538.70728612,0.0003041,2]
[357186683,1743873038291,-169.78080606,0.0003041,2]
[357186684,1743873038300,-500.0,0.0003041,2]